bitfinex-derivatives/quotes_SOLF0:USTF0_20250224
["timestamp","ask_amount","ask_price","bid_price","bid_amount"]
[1740426593275,50.82878034,150.02,149.95,107.43663408]
[1740426593481,13.86,150.19,149.95,107.43663408]
[1740426593684,50.82878034,150.02,149.95,107.43663408]
[1740426593984,0.05097966,150.0,149.97,6.71368756]
[1740426594184,0.05097966,150.0,149.97,0.04588756]
[1740426594384,50.82878034,149.99,149.97,0.04588756]
[1740426594579,50.82878034,149.98,149.94,89.45364301]
[1740426594778,50.82878034,149.96,149.94,89.45364301]
[1740426594976,50.82878034,149.97,149.94,89.45364301]
[1740426595786,50.87835942,149.97,149.94,89.49956251]
[1740426596184,50.82878034,149.95,149.94,89.49956251]
[1740426596394,50.82878034,149.95,149.94,56.02787955]
[1740426597591,0.04957908,149.97,149.94,56.02787955]
[1740426597783,50.82878034,149.95,149.94,56.02787955]
[1740426598289,50.82878034,149.95,149.94,40.00867955]
[1740426598589,50.82878034,149.95,149.85,174.32]
[1740426598787,50.82878034,149.88,149.86,1.08094683]
[1740426599090,50.82878034,149.88,149.85,174.32]
[1740426599285,50.82878034,149.86,149.82,39.53664219]
[1740426599484,50.82878034,149.86,149.83,1.08118431]
[1740426599884,50.87152451,149.86,149.83,0.04583343]
[1740426600187,50.82878034,149.84,149.83,0.04583343]
[1740426600787,0.04274417,149.86,149.83,0.04583343]
[1740426601189,50.82878034,149.84,149.83,0.04583343]
[1740426601786,0.04274417,149.86,149.83,0.04583343]
[1740426602287,0.04274417,149.86,149.72,99.0922145]
[1740426602493,50.82878034,149.84,149.8,6.675]
[1740426602689,13.76,150.01,149.73,13.74]
[1740426602886,50.82878034,149.82,149.73,13.74]
[1740426603084,50.82878034,149.81,149.73,13.74]
[1740426603482,0.05107671,149.78,149.76,0.04782827]
[1740426603691,0.05107671,149.78,149.74,1.07318064]
[1740426603897,13.74,149.92,149.74,1.07318064]
[1740426604083,50.82878034,149.82,149.74,1.07318064]
[1740426604287,50.82878034,149.77,149.75,6.96743193]
[1740426604485,50.82878034,149.75,149.68,256.07025484]
[1740426604684,50.82878034,149.72,149.68,256.07025484]
[1740426604893,50.82878034,149.72,149.7,171.41693041]
[1740426605089,7.8517,149.83,149.7,167.35633041]
[1740426605291,50.82878034,149.71,149.7,167.40647213]
[1740426605491,50.82878034,149.71,149.7,133.88464745]
[1740426606088,50.82878034,149.71,149.7,130.04554745]
[1740426606289,50.82878034,149.71,149.7,129.94228228]
[1740426606789,50.77786821,149.71,149.59,4.0145]
[1740426606990,50.77786821,149.65,149.53,13.72]
[1740426607196,6.6781,149.74,149.52,260.06719032]
[1740426607398,50.77786821,149.58,149.52,243.49542835]
[1740426607596,50.77786821,149.58,149.52,226.58081577]
[1740426607994,0.050975,149.58,149.56,0.14262227]
[1740426608492,50.77786821,149.57,149.52,193.25175508]
[1740426608695,0.050975,149.58,149.52,193.25175508]
[1740426608892,50.77786821,149.57,149.52,10.6476]
[1740426609285,50.77786821,149.54,149.51,16.91461258]
[1740426609493,50.77786821,149.53,149.49,6.6888]
[1740426609791,50.77786821,149.51,149.5,0.05121442]
[1740426609999,0.04546909,149.54,149.5,0.05121442]
[1740426610199,50.77786821,149.51,149.4,188.2]
[1740426610395,0.04682321,149.53,149.51,0.04464751]
[1740426610595,0.04682321,149.53,149.4,188.2]
[1740426610596,50.77786821,149.48,149.4,188.2]
[1740426610992,13.68,149.66,149.43,0.04316439]
[1740426611198,0.05049101,149.45,149.43,0.04316439]
[1740426611388,50.77786821,149.52,149.4,188.2]
[1740426611595,160.44963147,149.63,149.4,154.72831704]
[1740426611790,50.77786821,149.52,149.4,154.72831704]
[1740426611986,160.44963147,149.63,149.41,1.07565334]
[1740426612193,50.77786821,149.52,149.41,1.07565334]
[1740426612494,0.04676589,149.53,149.51,0.05078064]
[1740426612694,50.77786821,149.51,149.4,141.04831704]
[1740426613001,160.44963147,149.62,149.44,6.691]
[1740426613193,50.77786821,149.46,149.44,0.04224356]
[1740426613386,0.04809721,149.47,149.44,0.04224356]
[1740426613591,160.44963147,149.6,149.4,141.04831704]
[1740426613592,1.22798926,149.59,149.4,141.04831704]
[1740426613896,9.353e-05,149.47,149.44,0.04799756]
[1740426614088,50.77786821,149.49,149.4,141.04831704]
[1740426614289,50.77786821,149.47,149.4,141.04831704]
[1740426614494,50.77786821,149.47,149.4,107.57663408]
[1740426614896,50.77786821,149.45,149.4,107.57663408]
[1740426615089,0.04380719,149.45,149.42,0.04919093]
[1740426615692,0.04380719,149.45,149.44,6.6915]
[1740426616298,0.04380719,149.45,149.42,0.04919093]
[1740426616497,0.04380719,149.45,149.44,6.6915]
[1740426616693,160.44963147,149.6,149.42,0.04919093]
[1740426616894,50.77786821,149.51,149.4,107.57663408]
[1740426617093,50.77786821,149.56,149.41,13.3854]
[1740426617391,50.77786821,149.57,149.41,13.3854]
[1740426617698,50.77786821,149.61,149.41,1.33859848]
[1740426617898,13.62,149.74,149.48,0.04517819]
[1740426618095,50.77786821,149.63,149.49,13.62]
[1740426618289,50.77786821,149.63,149.5,12.0938]
[1740426618486,13.62,149.74,149.62,6.6834]
[1740426618690,50.77786821,149.66,149.59,13.62]
[1740426618893,50.77786821,149.63,149.61,0.04571854]
[1740426619093,50.77786821,149.63,149.59,13.62]
[1740426619394,0.04383769,149.63,149.61,0.0481286]
[1740426619703,50.77786821,149.59,149.53,174.8]
[1740426619895,50.77786821,149.57,149.53,174.8]
[1740426620091,50.77786821,149.56,149.5,12.0938]
[1740426620298,50.82653996,149.56,149.54,6.73083742]
[1740426620600,0.04867175,149.56,149.49,13.6]
[1740426620994,1.22743562,149.68,149.58,6.6851]
[1740426621194,50.77786821,149.61,149.49,13.6]
[1740426621392,50.77786821,149.59,149.49,13.6]
[1740426621800,9.88e-05,149.55,149.53,0.05084517]
[1740426622297,168.15273147,149.7,149.49,13.6]
[1740426622596,7.7031,149.7,149.49,13.6]
[1740426622800,50.77786821,149.6,149.49,13.6]
[1740426623001,0.05014066,149.61,149.58,0.04408444]
[1740426623202,50.77786821,149.61,149.49,13.6]
[1740426623394,0.0491205,149.61,149.58,0.05092931]
[1740426623598,3.9949,149.69,149.52,13.56]
[1740426623795,0.04278206,149.61,149.58,0.04891747]
[1740426624102,50.77786821,149.59,149.41,14.95859848]
[1740426624294,50.77786821,149.52,149.42,4.174]
[1740426624604,50.77786821,149.53,149.42,4.174]
[1740426624792,50.77786821,149.53,149.47,6.6898]
[1740426624998,50.77786821,149.53,149.42,4.174]
[1740426625199,50.77786821,149.5,149.49,0.04266554]
[1740426625398,50.77786821,149.5,149.42,4.174]
[1740426625595,160.44963147,149.63,149.48,0.04749398]
[1740426625800,50.77786821,149.54,149.47,6.6897]
[1740426626000,50.77786821,149.54,149.42,4.174]
[1740426626201,160.44963147,149.63,149.49,0.04626473]
[1740426626408,50.77786821,149.57,149.5,6.6884]
[1740426626603,50.82458864,149.57,149.55,0.04986528]
[1740426626802,50.82458864,149.57,149.46,13.6]
[1740426627203,50.77786821,149.57,149.46,13.6]
[1740426627805,0.05100508,149.53,149.5,0.04312192]
[1740426628904,164.44453147,149.69,149.5,174.88312192]
[1740426629110,164.44453147,149.69,149.5,174.84]
[1740426629402,50.77786821,149.57,149.5,174.84]
[1740426629599,164.44453147,149.69,149.5,174.84]
[1740426629805,50.77786821,149.61,149.5,141.36831704]
[1740426630012,50.77786821,149.57,149.5,141.36831704]
[1740426630309,0.0446498,149.57,149.54,0.04626705]
[1740426630500,50.77786821,149.52,149.4,13.58]
[1740426630710,50.77786821,149.53,149.4,13.58]
[1740426631508,160.44963147,149.62,149.4,13.58]
[1740426631709,50.77786821,149.58,149.45,0.04494123]
[1740426631906,50.77786821,149.6,149.41,23.8374]
[1740426632208,50.77786821,149.59,149.42,1.3385089]
[1740426632406,50.77786821,149.58,149.43,3.9957]
[1740426632709,50.77786821,149.6,149.39,20.02]
[1740426633007,50.77786821,149.55,149.44,13.56]
[1740426633207,0.05108559,149.51,149.48,0.04967125]
[1740426633406,160.44963147,149.68,149.48,0.04967125]
[1740426633601,50.77786821,149.62,149.48,0.04967125]
[1740426633917,21.2631,149.7,149.44,13.56]
[1740426633918,50.77786821,149.66,149.44,315.54575145]
[1740426634105,7.7031,149.7,149.46,46.741]
[1740426634299,160.44963147,149.82,149.46,46.741]
[1740426634513,160.44963147,149.82,149.49,40.03]
[1740426634514,160.44963147,149.81,149.49,40.03]
[1740426634705,0.0460889,149.65,149.63,0.04551679]
[1740426634900,50.77786821,149.73,149.64,13.54]
[1740426635111,7.8431,149.82,149.64,13.54]
[1740426635300,50.77786821,149.76,149.64,13.54]
[1740426635709,7.8431,149.82,149.64,13.54]
[1740426635905,50.77786821,149.76,149.65,13.54]
[1740426636207,50.77786821,149.73,149.63,154.90831704]
[1740426636403,0.04851733,149.74,149.69,0.05046816]
[1740426636599,21.3831,149.82,149.69,0.05046816]
[1740426636803,21.3831,149.82,149.63,154.90831704]
[1740426636804,50.77786821,149.7,149.63,154.90831704]
[1740426637002,50.77786821,149.67,149.63,154.90831704]
[1740426637201,50.77786821,149.68,149.63,154.90831704]
[1740426638107,0.04777568,149.67,149.64,0.04869353]
[1740426638805,0.04777568,149.67,149.62,56.25931289]
[1740426640111,0.04777568,149.67,149.63,0.05084492]
[1740426640913,7.8431,149.82,149.63,0.05084492]
[1740426641210,7.8431,149.82,149.62,56.25931289]
[1740426641211,50.77786821,149.74,149.62,56.25931289]
[1740426641506,50.77786821,149.75,149.62,56.25931289]
[1740426641910,50.77786821,149.75,149.62,22.78762993]
[1740426642110,1.99e-05,149.7,149.67,0.04608171]
[1740426642308,50.77786821,149.72,149.62,36.20762993]
[1740426642513,50.77786821,149.71,149.62,36.20762993]
[1740426642909,7.8431,149.82,149.62,36.20762993]
[1740426643207,50.77786821,149.71,149.62,36.20762993]
[1740426643813,0.04405019,149.68,149.65,0.04818901]
[1740426644107,50.77786821,149.71,149.68,6.6806]
[1740426644312,0.04303522,149.68,149.65,0.04774467]
[1740426644512,50.77786821,149.71,149.68,0.04990243]
[1740426644812,50.82838477,149.71,149.68,6.6803]
[1740426645112,0.05051656,149.71,149.62,9.45870157]
[1740426645312,50.77786821,149.71,149.62,9.45870157]
[1740426645613,50.77786821,149.71,149.68,6.6804]
[1740426645808,50.77786821,149.71,149.63,89.68223642]
[1740426646213,50.77786821,149.71,149.66,0.04620191]
[1740426646406,0.0484263,149.68,149.66,0.04620191]
[1740426646610,2.63e-05,149.68,149.67,6.6812]
[1740426647008,4.0456,149.82,149.66,0.04620191]
[1740426647214,3.9867,149.95,149.65,20.02]
[1740426647507,50.77786821,149.84,149.64,20.01]
[1740426647714,50.77786821,149.85,149.65,1.33645172]
[1740426647909,12.1649,149.95,149.65,1.33645172]
[1740426648207,12.1649,149.95,149.64,20.01]
[1740426648208,0.05098388,149.81,149.79,0.04477324]
[1740426648607,12.1649,149.95,149.79,0.04806076]
[1740426648812,12.1649,149.95,149.79,4.0435]
[1740426648813,50.77786821,149.89,149.79,4.0435]
[1740426649213,12.1649,149.95,149.79,4.0435]
[1740426649413,50.77786821,149.89,149.79,4.0435]
[1740426649812,12.1649,149.95,149.79,4.0435]
[1740426650011,0.05064685,149.85,149.83,0.04689591]
[1740426650216,12.1649,149.95,149.83,0.04689591]
[1740426650517,50.82066742,149.85,149.78,13.36]
[1740426650812,50.77786821,149.83,149.78,13.36]
[1740426651010,50.82079782,149.83,149.8,0.04563016]
[1740426651209,0.04292961,149.83,149.8,0.04563016]
[1740426651412,50.82079782,149.83,149.8,0.04563016]
[1740426651612,50.77786821,149.81,149.76,154.60831704]
[1740426651916,50.77786821,149.83,149.76,154.60831704]
[1740426652415,25.4849,149.95,149.76,154.60831704]
[1740426652616,50.77786821,149.85,149.77,4.0186]
[1740426652812,50.77786821,149.85,149.84,0.05105037]
[1740426653112,50.77786821,149.85,149.83,0.0447631]
[1740426653315,50.77786821,149.85,149.77,4.0186]
[1740426653513,50.82074091,149.85,149.83,0.04368909]
[1740426653710,50.82074091,149.85,149.77,4.0186]
[1740426653915,0.0428727,149.85,149.83,0.04852659]
[1740426654115,50.77786821,149.82,149.76,121.13663408]
[1740426654712,25.4449,149.95,149.76,121.13663408]
[1740426655019,50.77786821,149.84,149.76,121.13663408]
[1740426655219,50.77786821,149.83,149.76,121.13663408]
[1740426655518,50.77786821,149.81,149.79,0.04938394]
[1740426655712,0.04714213,149.81,149.76,121.13663408]
[1740426656015,0.05032465,149.81,149.79,6.718532]
[1740426656210,0.05032465,149.81,149.79,0.042832]
[1740426656513,12.1649,149.95,149.79,13.262832]
[1740426656710,50.77786821,149.87,149.79,13.22]
[1740426657110,50.77786821,149.82,149.76,100.88495112]
[1740426657307,50.77786821,149.81,149.76,100.88495112]
[1740426657608,0.04812403,149.8,149.77,0.05112714]
[1740426658111,12.1649,149.95,149.77,0.05112714]
[1740426658319,50.77786821,149.87,149.76,100.88495112]
[1740426658518,50.77786821,149.86,149.76,100.88495112]
[1740426659020,50.77786821,149.84,149.76,100.88495112]
[1740426659216,50.77786821,149.84,149.8,6.6751]
[1740426659417,0.04655755,149.81,149.8,6.6751]
[1740426659913,50.77786821,149.84,149.79,0.04499422]
[1740426659914,12.1649,149.95,149.79,0.04499422]
[1740426660221,50.77786821,149.86,149.76,74.13246238]
[1740426660618,12.1649,149.95,149.76,74.13246238]
[1740426660817,50.77786821,149.87,149.76,74.13246238]
[1740426661016,50.77786821,149.88,149.76,74.13246238]
[1740426661317,50.77786821,149.8,149.76,74.13246238]
[1740426661517,50.82705926,149.83,149.81,0.04930476]
[1740426661714,8.1782,149.95,149.85,6.6729]
[1740426661916,50.77786821,149.89,149.81,0.04494112]
[1740426662111,50.77786821,149.89,149.77,13.18]
[1740426662316,3.921,149.94,149.84,0.04473792]
[1740426662514,50.77786821,149.91,149.84,0.04473792]
[1740426662813,13.18,150.08,149.92,6.67]
[1740426663015,50.77786821,149.96,149.87,13.18]
[1740426663320,0.04595567,150.0,149.88,174.54]
[1740426663511,7.8841,150.02,149.9,0.04997977]
[1740426663711,50.77786821,149.94,149.88,174.54]
[1740426663924,50.77786821,149.9,149.79,17.0266]
[1740426664217,7.8841,150.02,149.79,17.0266]
[1740426664420,36.77786821,149.97,149.9,6.6709]
[1740426664616,0.05021298,149.92,149.79,3.8466]
[1740426664815,36.77786821,149.95,149.88,6.6717]
[1740426665016,36.77786821,150.01,149.86,89.54072108]
[1740426665313,7.8841,150.02,149.86,89.54072108]
[1740426665512,36.77786821,150.01,149.87,4.1249]
[1740426665710,44.66196821,150.02,149.87,4.1249]
[1740426665911,44.66196821,150.02,149.94,6.6687]
[1740426666110,7.8841,150.02,149.92,174.5]
[1740426666318,0.04983808,149.99,149.97,0.04376742]
[1740426668421,3.7996,150.14,149.97,0.04376742]
[1740426668619,36.77786821,150.07,149.95,4.1249]
[1740426669221,36.77786821,150.07,149.96,13.14]
[1740426669426,0.04340367,150.03,150.0,6.6664]
[1740426669820,0.04340367,150.03,149.99,0.04643266]
[1740426670019,0.04340367,150.03,150.02,6.6656]
[1740426670220,3.7996,150.14,149.99,0.04643266]
[1740426670536,36.77786821,150.04,149.96,13.14]
[1740426670832,36.77786821,150.04,149.94,13.12]
[1740426671025,3.7996,150.14,149.94,13.12]
[1740426671225,36.77786821,150.05,149.94,13.12]
[1740426671427,36.77786821,150.01,149.94,13.12]
[1740426671628,36.77786821,150.01,149.98,0.04854232]
[1740426671936,3.9372,150.04,149.98,0.04854232]
[1740426672136,36.77786821,150.02,149.98,0.04854232]
[1740426672338,160.44963147,150.14,149.97,13.12]
[1740426672633,3.9457,150.15,150.08,6.6629]
[1740426672634,36.77786821,150.12,150.08,6.6629]
[1740426672840,163.13162605,150.32,150.06,13.12]
[1740426673031,36.77786821,150.17,150.06,13.12]
[1740426673229,36.77786821,150.19,150.15,6.6594]
[1740426673538,4.0593,150.31,150.16,174.38]
[1740426673736,29.77786821,150.3,150.16,174.38]
[1740426673933,33.83716821,150.31,150.16,174.38]
[1740426674137,105.83778017,150.32,150.16,174.38]
[1740426674638,29.77786821,150.28,150.16,174.38]
[1740426674833,105.83778017,150.32,150.22,0.04823367]
[1740426675038,29.77786821,150.31,150.22,0.04823367]
[1740426675238,102.01148017,150.32,150.17,7.865]
[1740426675438,102.01148017,150.32,150.25,0.04804051]
[1740426675632,88.01148017,150.32,150.26,13.12]
[1740426675832,88.01148017,150.32,150.27,6.6544]
[1740426676239,170.01913363,150.33,150.28,174.18]
[1740426676440,15.01913363,150.33,150.28,174.18]
[1740426676639,1.01913363,150.33,150.29,0.04861712]
[1740426676837,3.8263,150.38,150.29,0.04861712]
[1740426677037,207.8626762,150.35,150.33,6.6517]
[1740426677236,201.2016762,150.35,150.33,6.6517]
[1740426677540,201.2016762,150.35,150.28,174.18]
[1740426677541,12.0601,150.49,150.34,6.6514]
[1740426677734,29.77786821,150.42,150.35,13.1]
[1740426677939,12.0601,150.49,150.35,13.1]
[1740426678137,29.77786821,150.43,150.37,0.04435809]
[1740426678339,29.77786821,150.42,150.28,153.85267513]
[1740426678543,29.77786821,150.42,150.32,13.08]
[1740426678737,12.0601,150.49,150.33,3.9854]
[1740426678940,29.77786821,150.42,150.3,13.08]
[1740426679139,29.77786821,150.38,150.29,3.9854]
[1740426679341,29.77786821,150.4,150.3,187.26]
[1740426679645,0.04915773,150.35,150.32,0.04662377]
[1740426680145,0.04915773,150.35,150.22,89.32164534]
[1740426680146,29.77786821,150.33,150.22,89.32164534]
[1740426680336,3.8416,150.34,150.22,89.32164534]
[1740426680536,160.44963147,150.46,150.22,89.32164534]
[1740426680744,29.77786821,150.33,150.22,89.32164534]
[1740426680940,29.77786821,150.34,150.22,89.32164534]
[1740426681141,29.77786821,150.35,150.22,89.32164534]
[1740426681342,29.77786821,150.33,150.22,89.32164534]
[1740426681642,0.0499314,150.3,150.26,0.04790708]
[1740426682146,0.05096522,150.3,150.26,0.049103]
[1740426682645,6.522e-05,150.3,150.26,0.049103]
[1740426682941,159.14838169,150.48,150.27,177.53752824]
[1740426683139,29.77786821,150.4,150.27,177.53752824]
[1740426683346,29.77786821,150.42,150.27,177.53752824]
[1740426683543,511.07799916,150.93,150.27,177.53752824]
[1740426683544,29.77786821,150.4,150.27,177.53752824]
[1740426684045,29.77786821,150.33,150.27,177.53752824]
[1740426684346,29.77786821,150.38,150.27,177.53752824]
[1740426684640,0.04621799,150.32,150.28,0.05008719]
[1740426684841,129.52559657,150.48,150.28,0.05008719]
[1740426685141,1.3291686,150.47,150.27,228.60023241]
[1740426685342,4.0648,150.46,150.27,228.60023241]
[1740426685643,1.32934529,150.45,150.27,228.60023241]
[1740426685843,13.14,150.44,150.3,70.85295629]
[1740426686044,13.14,150.44,150.34,0.04980093]
[1740426686239,13.07308069,150.44,150.34,0.04980093]
[1740426686445,13.07308069,150.44,150.3,70.85295629]
[1740426686746,1.32934529,150.45,150.37,0.04216822]
[1740426686946,4.0648,150.46,150.37,0.04216822]
[1740426687439,4.0648,150.46,150.31,178.0897]
[1740426687641,4.0648,150.46,150.32,13.14]
[1740426688038,13.14,150.58,150.32,13.14]
[1740426688237,13.14,150.58,150.33,3.9391]
[1740426688238,12.0095,150.57,150.33,3.9391]
[1740426688744,0.0425208,150.47,150.43,0.0434527]
[1740426688944,129.52559657,150.56,150.31,144.32898526]
[1740426689145,12.0095,150.57,150.32,3.7785]
[1740426690135,0.0434527,150.46,150.43,0.05063742]
[1740426690342,12.0095,150.57,150.38,13.12]
[1740426690543,12.0095,150.57,150.43,0.04559944]
[1740426690744,0.0434527,150.46,150.43,0.04559944]
[1740426690948,129.52559657,150.56,150.32,13.12]
[1740426691145,0.0434527,150.46,150.43,0.04882592]
[1740426691351,0.0434527,150.46,150.31,89.24997345]
[1740426691647,129.52559657,150.55,150.31,89.24997345]
[1740426691843,130.74620562,150.54,150.31,89.24997345]
[1740426692145,129.52559657,150.54,150.31,89.24997345]
[1740426692444,1.32837407,150.56,150.41,0.04778438]
[1740426692650,0.05021896,150.44,150.41,0.04778438]
[1740426692844,1.32837407,150.56,150.36,13.16]
[1740426693045,0.0428323,150.44,150.41,0.04930189]
[1740426693240,0.0428323,150.44,150.36,13.16]
[1740426693445,130.85397064,150.56,150.44,6.6469]
[1740426693642,1.32837407,150.56,150.35,13.16]
[1740426693847,1.32837407,150.56,150.36,177.9735]
[1740426694239,12.0095,150.57,150.36,177.9735]
[1740426694645,12.0095,150.57,150.42,6.6475]
[1740426695051,0.04875612,150.51,150.48,0.04207557]
[1740426696654,0.04875612,150.51,150.36,144.73105953]
[1740426696952,12.0095,150.57,150.45,6.6465]
[1740426697153,12.0095,150.57,150.36,144.73105953]
[1740426697846,0.0507351,150.48,150.45,0.04636349]
[1740426698053,12.0095,150.57,150.43,6.6472]
[1740426698248,0.04422449,150.48,150.45,0.04634531]
[1740426698554,25.1095,150.57,150.36,144.73105953]
[1740426698750,0.05025483,150.48,150.45,0.04512045]
[1740426698950,25.1095,150.57,150.36,144.73105953]
[1740426699148,0.045939,150.48,150.46,6.6461]
[1740426699549,0.04199555,150.49,150.46,6.6461]
[1740426699751,0.04199555,150.49,150.37,62.6307773]
[1740426700056,129.52559657,150.56,150.37,62.6307773]
[1740426700353,25.1095,150.57,150.37,62.6307773]
[1740426700854,0.04396751,150.49,150.45,0.04294723]
[1740426701054,25.1095,150.57,150.37,62.6307773]
[1740426701260,0.04284129,150.49,150.45,0.05036142]
[1740426701460,25.1095,150.57,150.44,6.6469]
[1740426701653,25.1095,150.57,150.38,8.85675234]
[1740426702652,0.04677474,150.49,150.46,0.04478383]
[1740426702856,0.04677474,150.49,150.37,97.02538403]
[1740426703053,129.52559657,150.56,150.37,97.02538403]
[1740426703253,25.1095,150.57,150.42,8.97987936]
[1740426703456,154.63509657,150.57,150.42,8.97987936]
[1740426703850,154.63509657,150.57,150.48,0.0511363]
[1740426704058,0.04574397,150.51,150.4,70.85295629]
[1740426704260,1.2203348,150.56,150.4,70.85295629]
[1740426704456,1.2203348,150.55,150.4,70.85295629]
[1740426704762,1.2203348,150.54,150.4,70.85295629]
[1740426705057,1.2203348,150.53,150.35,70.85295629]
[1740426705259,0.04714458,150.49,150.35,70.85295629]
[1740426705455,6.6429,150.54,150.35,70.85295629]
[1740426705758,6.6429,150.54,150.35,37.56844025]
[1740426705951,129.52559657,150.53,150.35,37.56844025]
[1740426706354,0.04971072,150.46,150.42,0.04991694]
[1740426706554,0.04971072,150.46,150.35,37.56844025]
[1740426706956,25.1095,150.57,150.42,0.04527612]
[1740426707156,25.1095,150.57,150.38,13.0]
[1740426707356,0.04769735,150.51,150.48,0.04301668]
[1740426707660,0.04769735,150.51,150.38,13.0]
[1740426708158,25.0095,150.57,150.38,13.0]
[1740426708659,0.04721772,150.49,150.46,0.04709569]
[1740426708859,154.53509657,150.57,150.35,12.98]
[1740426709059,25.0095,150.57,150.35,12.98]
[1740426709561,12.0095,150.57,150.35,12.98]
[1740426709761,12.0095,150.57,150.35,32.99]
[1740426709950,12.0095,150.57,150.44,0.04662011]
[1740426709951,0.04924017,150.48,150.44,0.04662011]
[1740426710157,12.0095,150.57,150.4,173.8]
[1740426710355,0.04885031,150.48,150.46,6.6459]
[1740426710552,12.0095,150.57,150.46,6.6459]
[1740426710758,0.04412899,150.49,150.45,0.04220464]
[1740426710958,12.0095,150.57,150.43,5.36002731]
[1740426711160,0.04906294,150.49,150.45,0.04790071]
[1740426711361,12.0095,150.57,150.43,5.36002731]
[1740426711664,0.0508369,150.49,150.43,5.36002731]
[1740426711856,0.0508369,150.49,150.48,0.04327932]
[1740426712057,0.0508369,150.49,150.4,145.87551127]
[1740426712967,0.0508369,150.49,150.42,6.6478]
[1740426713267,0.0508369,150.49,150.43,0.05039431]
[1740426714062,0.0508369,150.49,150.46,6.6457]
[1740426714559,0.0508369,150.49,150.43,0.05039431]
[1740426714761,0.0508369,150.49,150.48,6.6452]
[1740426714956,0.0508369,150.49,150.42,79.69051271]
[1740426715562,0.0508369,150.49,150.48,6.6452]
[1740426716863,0.0508369,150.49,150.47,6.69127283]
[1740426717066,0.0508369,150.49,150.48,0.1]
[1740426717568,0.0508369,150.49,150.48,6.7452]
[1740426717764,173.78,150.75,150.48,0.1]
[1740426717959,11.8358,150.64,150.46,12.88]
[1740426718166,11.8358,150.64,150.56,6.6416]
[1740426718570,11.8358,150.64,150.46,12.88]
[1740426718869,11.8358,150.64,150.46,32.89]
[1740426719165,3.4e-07,150.57,150.56,6.6417]
[1740426719369,8.0963,150.72,150.55,186.62]
[1740426720475,0.04509307,150.65,150.62,0.04891122]
[1740426720671,8.0963,150.72,150.55,186.62]
[1740426720862,8.0963,150.72,150.62,0.04217605]
[1740426721061,1.784e-05,150.65,150.55,173.38766001]
[1740426721267,11.8482,150.82,150.55,180.09866001]
[1740426721971,11.8482,150.82,150.52,173.68]
[1740426722272,11.8482,150.82,150.67,0.045445]
[1740426722273,0.04347235,150.7,150.67,0.045445]
[1740426722670,11.8482,150.82,150.52,173.68]
[1740426722970,0.04362455,150.7,150.67,0.0455673]
[1740426723170,11.8482,150.82,150.62,12.88]
[1740426723372,11.8482,150.82,150.63,4.0407]
[1740426723570,0.04829389,150.7,150.68,6.636]
[1740426723771,11.8482,150.82,150.63,4.0407]
[1740426723971,0.04452618,150.71,150.67,0.04960694]
[1740426724267,11.8482,150.82,150.7,6.6351]
[1740426724469,0.04482262,150.71,150.67,0.04734262]
[1740426724664,11.8482,150.82,150.64,140.39548396]
[1740426724865,0.04428806,150.71,150.67,0.04776579]
[1740426725065,12.86,150.75,150.58,177.26055296]
[1740426725571,20.9263,150.82,150.58,177.26055296]
[1740426725774,20.9263,150.82,150.64,6.6381]
[1740426725973,20.9263,150.82,150.58,177.26055296]
[1740426726271,0.04419753,150.75,150.71,0.05055428]
[1740426726465,20.9263,150.82,150.55,173.6]
[1740426726663,1.326172,150.81,150.55,173.6]
[1740426727064,1.326172,150.81,150.55,140.31548396]
[1740426727466,6.6332,150.76,150.59,6.6403]
[1740426727671,0.04516541,150.7,150.5,109.0913673]
[1740426727867,12.88,150.69,150.5,109.0913673]
[1740426728070,133.36329657,150.68,150.5,109.0913673]
[1740426728270,130.85300083,150.67,150.5,109.0913673]
[1740426728576,129.52559657,150.66,150.5,84.1145673]
[1740426728777,1.32758048,150.65,150.5,84.1145673]
[1740426728975,0.04350879,150.6,150.56,0.04190449]
[1740426729170,142.38559657,150.59,150.51,53.90531092]
[1740426729375,129.52559657,150.58,150.51,32.70651092]
[1740426730079,129.52559657,150.58,150.48,6.6452]
[1740426730282,129.52559657,150.58,150.47,176.68254784]
[1740426730576,0.04781884,150.56,150.53,0.05100306]
[1740426731973,1.884e-05,150.56,150.55,6.6421]
[1740426733073,1.884e-05,150.56,150.48,167.71058702]
[1740426733277,1.884e-05,150.56,150.49,33.91654823]
[1740426733477,1.884e-05,150.56,150.5,2.39545188]
[1740426733675,1.884e-05,150.56,150.55,6.6421]
[1740426734777,1.884e-05,150.56,150.55,19.5021]